[Event "*** Titled Tuesday Blitz"]
[Site "Chess.com"]
[Date "2019.09.03"]
[Round "1"]
[White "abubakrtagelsir"]
[Black "Sutormin_DA"]
[Result "0-1"]
[WhiteElo "2255"]
[BlackElo "2614"]
[TimeControl "180+2"]
[EndTime "15:09:52 PDT"]
[Termination "Sutormin_DA won by resignation"]

1. e4 {[%clk 0:03:00.1]} 1... c5 {[%clk 0:02:43.6]} 2. Nc3 {[%clk 0:02:59.1]}
2... e6 {[%clk 0:02:44.9]} 3. g3 {[%clk 0:02:59.1]} 3... Nc6 {[%clk 0:02:46.1]}
4. Bg2 {[%clk 0:02:59.8]} 4... g6 {[%clk 0:02:47.4]} 5. Nf3 {[%clk 0:02:55.5]}
5... Bg7 {[%clk 0:02:48.3]} 6. O-O {[%clk 0:02:43.5]} 6... Nge7 {[%clk
0:02:47.7]} 7. d4 {[%clk 0:02:38]} 7... cxd4 {[%clk 0:02:41.6]} 8. Nb5 {[%clk
0:02:38.2]} 8... O-O {[%clk 0:02:43]} 9. Nbxd4 {[%clk 0:02:36.4]} 9... a6 {[%clk
0:02:36.5]} 10. c3 {[%clk 0:02:33.2]} 10... b6 {[%clk 0:02:14.9]} 11. Bg5 {[%clk
0:02:30.5]} 11... Qc7 {[%clk 0:02:00.8]} 12. Bf4 {[%clk 0:02:12.9]} 12... e5
{[%clk 0:01:34.4]} 13. Nxc6 {[%clk 0:02:10.4]} 13... dxc6 {[%clk 0:01:36.3]} 14.
Be3 {[%clk 0:02:01.7]} 14... Be6 {[%clk 0:01:27.3]} 15. Ng5 {[%clk 0:01:50.4]}
15... Bc4 {[%clk 0:01:13.7]} 16. Re1 {[%clk 0:01:50.8]} 16... Rad8 {[%clk
0:01:14.8]} 17. Qc1 {[%clk 0:01:50.9]} 17... h6 {[%clk 0:01:12.2]} 18. Nf3
{[%clk 0:01:50.9]} 18... Kh7 {[%clk 0:01:13.3]} 19. b3 {[%clk 0:01:45.7]} 19...
Bd3 {[%clk 0:01:09.3]} 20. Qa3 {[%clk 0:01:40.1]} 20... a5 {[%clk 0:00:58.5]}
21. Nd2 {[%clk 0:01:33.2]} 21... c5 {[%clk 0:00:51.9]} 22. h4 {[%clk 0:01:20.6]}
22... f5 {[%clk 0:00:52.4]} 23. h5 {[%clk 0:01:18.1]} 23... f4 {[%clk
0:00:51.6]} 24. hxg6+ {[%clk 0:01:18.5]} 24... Nxg6 {[%clk 0:00:52.2]} 25. Nf3
{[%clk 0:01:12.7]} 25... fxe3 {[%clk 0:00:50.2]} 26. Rxe3 {[%clk 0:01:13.6]}
26... Qc6 {[%clk 0:00:44.3]} 27. Rd1 {[%clk 0:00:59.6]} 27... Ba6 {[%clk
0:00:40.1]} 28. Qc1 {[%clk 0:00:53.1]} 28... Qc7 {[%clk 0:00:38.1]} 29. Bh3
{[%clk 0:00:45.4]} 29... Rxd1+ {[%clk 0:00:34.4]} 30. Qxd1 {[%clk 0:00:45.7]}
30... Rd8 {[%clk 0:00:36.3]} 31. Qc2 {[%clk 0:00:33.9]} 31... Qd6 {[%clk
0:00:37.5]} 32. Bf5 {[%clk 0:00:25.3]} 32... Qd1+ {[%clk 0:00:37.3]} 33. Qxd1
{[%clk 0:00:25.6]} 33... Rxd1+ {[%clk 0:00:39.2]} 34. Kh2 {[%clk 0:00:26]} 34...
Bf6 {[%clk 0:00:40.8]} 35. Nh4 {[%clk 0:00:21.4]} 35... Bxh4 {[%clk 0:00:41.7]}
36. gxh4 {[%clk 0:00:22.7]} 36... h5 {[%clk 0:00:39.5]} 37. Rg3 {[%clk
0:00:20.7]} 37... Rd6 {[%clk 0:00:40.9]} 38. Rg5 {[%clk 0:00:21.7]} 38... Kh6
{[%clk 0:00:42.3]} 39. Kg3 {[%clk 0:00:20.1]} 39... Be2 {[%clk 0:00:37.4]} 40.
f3 {[%clk 0:00:18.9]} 40... Nf4 {[%clk 0:00:34.1]} 41. Kf2 {[%clk 0:00:14.3]}
41... Rd3 {[%clk 0:00:32.1]} 42. Bc8 {[%clk 0:00:10.4]} 42... Rxf3+ {[%clk
0:00:32.8]} 43. Ke1 {[%clk 0:00:11.5]} 43... Rxc3 {[%clk 0:00:31.8]} 44. Rxe5
{[%clk 0:00:11.5]} 44... Nd3+ {[%clk 0:00:32.7]} 45. Kd2 {[%clk 0:00:11.9]}
45... Nxe5 {[%clk 0:00:31.8]} 46. Kxc3 {[%clk 0:00:13]} 46... Nf3 {[%clk
0:00:31.4]} 47. Bd7 {[%clk 0:00:09.7]} 47... Nxh4 {[%clk 0:00:31.4]} 48. e5
{[%clk 0:00:10.8]} 48... Kg5 {[%clk 0:00:29.7]} 49. Kd2 {[%clk 0:00:09.6]} 49...
Bg4 {[%clk 0:00:29]} 50. Be8 {[%clk 0:00:09.8]} 50... Nf3+ {[%clk 0:00:29.3]}
0-1

[Event "*** Titled Tuesday Blitz"]
[Site "Chess.com"]
[Date "2019.09.03"]
[Round "1"]
[White "tonyq11"]
[Black "Potosino1970"]
[Result "1/2-1/2"]
[WhiteElo "2199"]
[BlackElo "2570"]
[TimeControl "180+2"]
[EndTime "15:10:24 PDT"]
[Termination "Game drawn by agreement"]

1. d4 {[%clk 0:03:00.3]} 1... Nf6 {[%clk 0:02:59.8]} 2. c4 {[%clk 0:03:01.3]}
2... e6 {[%clk 0:03:00.7]} 3. Nc3 {[%clk 0:02:59.8]} 3... Bb4 {[%clk 0:03:01.4]}
4. f3 {[%clk 0:03:01]} 4... d5 {[%clk 0:02:53.4]} 5. a3 {[%clk 0:03:01.5]} 5...
Be7 {[%clk 0:02:53.7]} 6. e4 {[%clk 0:02:48.8]} 6... dxe4 {[%clk 0:02:54.3]} 7.
fxe4 {[%clk 0:02:50.7]} 7... e5 {[%clk 0:02:55.5]} 8. d5 {[%clk 0:02:47.1]} 8...
Bc5 {[%clk 0:02:56.1]} 9. Nf3 {[%clk 0:02:48.1]} 9... Bg4 {[%clk 0:02:55.9]} 10.
Qd3 {[%clk 0:02:24.9]} 10... Nbd7 {[%clk 0:02:48.9]} 11. Be3 {[%clk 0:02:11.2]}
11... Bxf3 {[%clk 0:02:42.3]} 12. gxf3 {[%clk 0:02:11.4]} 12... O-O {[%clk
0:02:42.6]} 13. Be2 {[%clk 0:02:05.4]} 13... a5 {[%clk 0:02:39.9]} 14. O-O-O
{[%clk 0:01:38.7]} 14... Nh5 {[%clk 0:02:33.2]} 15. Rdg1 {[%clk 0:01:18.8]}
15... Bxe3+ {[%clk 0:02:15.2]} 16. Qxe3 {[%clk 0:01:20.7]} 16... Nf4 {[%clk
0:02:14.5]} 17. Rg4 {[%clk 0:01:13.6]} 17... c6 {[%clk 0:02:07.1]} 18. Rhg1
{[%clk 0:01:11.7]} 18... g6 {[%clk 0:02:07.3]} 19. h4 {[%clk 0:01:05.2]} 19...
Qe7 {[%clk 0:02:02.7]} 20. R1g3 {[%clk 0:00:32]} 20... Rac8 {[%clk 0:01:57.5]}
21. Kb1 {[%clk 0:00:28.2]} 21... Qf6 {[%clk 0:01:50.7]} 22. Rg5 {[%clk 0:00:25]}
22... Kh8 {[%clk 0:01:37.2]} 23. Bd1 {[%clk 0:00:16.3]} 23... Rfd8 {[%clk
0:01:34.3]} 24. Bc2 {[%clk 0:00:16.9]} 24... cxd5 {[%clk 0:01:17.3]} 25. Nxd5
{[%clk 0:00:17]} 25... Nxd5 {[%clk 0:01:15.2]} 26. exd5 {[%clk 0:00:17.9]} 26...
Rxc4 {[%clk 0:01:14.4]} 27. h5 {[%clk 0:00:18.1]} 27... Rdc8 {[%clk 0:01:11.6]}
28. Rg2 {[%clk 0:00:17.6]} 28... e4 {[%clk 0:00:57.3]} 29. hxg6 {[%clk
0:00:12.6]} 29... hxg6 {[%clk 0:00:57]} 30. Rxg6 {[%clk 0:00:06.3]} 30... fxg6
{[%clk 0:00:37.5]} 31. Qh6+ {[%clk 0:00:07.2]} 31... Kg8 {[%clk 0:00:39]} 32.
Rxg6+ {[%clk 0:00:08.4]} 32... Qxg6 {[%clk 0:00:40.2]} 33. Qxg6+ {[%clk
0:00:09.9]} 33... Kf8 {[%clk 0:00:41.5]} 34. Bxe4 {[%clk 0:00:07.1]} 34... Rd4
{[%clk 0:00:36.7]} 35. Qd6+ {[%clk 0:00:06.7]} 35... Ke8 {[%clk 0:00:36.7]} 36.
Bg6+ {[%clk 0:00:07.4]} 36... Kd8 {[%clk 0:00:38]} 37. Bf5 {[%clk 0:00:08.6]}
37... Rd1+ {[%clk 0:00:38.1]} 38. Ka2 {[%clk 0:00:09.4]} 38... Rc7 {[%clk
0:00:39.5]} 39. Bxd7 {[%clk 0:00:06.9]} 39... Rxd7 {[%clk 0:00:40.5]} 40. Qb6+
{[%clk 0:00:08.1]} 40... Kc8 {[%clk 0:00:38.7]} 41. Qc5+ {[%clk 0:00:08.6]}
41... Kb8 {[%clk 0:00:39.1]} 42. Qf8+ {[%clk 0:00:08.2]} 42... Ka7 {[%clk
0:00:39.7]} 43. Qc5+ {[%clk 0:00:05]} 43... b6 {[%clk 0:00:40.9]} 44. Qc3 {[%clk
0:00:04.6]} 44... R1xd5 {[%clk 0:00:42.3]} 45. f4 {[%clk 0:00:05.7]} 45... Rc5
{[%clk 0:00:43.6]} 46. Qe3 {[%clk 0:00:06.1]} 46... Rdc7 {[%clk 0:00:44.7]} 47.
f5 {[%clk 0:00:06.4]} 47... Rxf5 {[%clk 0:00:44.9]} 48. Qe4 {[%clk 0:00:07.1]}
48... Rfc5 {[%clk 0:00:46.4]} 49. Qe3 {[%clk 0:00:08.3]} 49... a4 {[%clk
0:00:45.7]} 50. Qe4 {[%clk 0:00:08.2]} 50... Rc4 {[%clk 0:00:46.6]} 51. Qe3
{[%clk 0:00:07.9]} 51... Ka6 {[%clk 0:00:46.2]} 52. Qd3 {[%clk 0:00:08.6]} 52...
b5 {[%clk 0:00:46.9]} 53. Qd6+ {[%clk 0:00:08.9]} 53... R4c6 {[%clk 0:00:48.5]}
54. Qd3 {[%clk 0:00:09.4]} 54... Rf6 {[%clk 0:00:47.9]} 55. Qd8 {[%clk
0:00:08.4]} 55... Rcf7 {[%clk 0:00:47.6]} 56. Qa8+ {[%clk 0:00:09.2]} 56... Kb6
{[%clk 0:00:48.5]} 57. Qb8+ {[%clk 0:00:10.1]} 57... Kc5 {[%clk 0:00:49.6]} 58.
Qc8+ {[%clk 0:00:10.8]} 58... Kd5 {[%clk 0:00:50.1]} 59. Qd8+ {[%clk 0:00:11.2]}
59... Rd6 {[%clk 0:00:50.7]} 60. Qa8+ {[%clk 0:00:11.2]} 60... Kc5 {[%clk
0:00:50.8]} 61. Qc8+ {[%clk 0:00:11.3]} 61... Rc6 {[%clk 0:00:51.9]} 62. Qh8
{[%clk 0:00:08.4]} 62... Rff6 {[%clk 0:00:52.1]} 63. Qd8 {[%clk 0:00:07.8]}
63... Kc4 {[%clk 0:00:51.9]} 64. Qd2 {[%clk 0:00:08]} 64... Rcd6 {[%clk
0:00:52.2]} 65. Qe2+ {[%clk 0:00:08.9]} 65... Kc5 {[%clk 0:00:53.3]} 66. Qe3+
{[%clk 0:00:10.3]} 66... Kc6 {[%clk 0:00:54.4]} 67. Qe4+ {[%clk 0:00:11.7]}
67... Kb6 {[%clk 0:00:55.7]} 68. Qe3+ {[%clk 0:00:12.7]} 68... Ka6 {[%clk
0:00:55.8]} 69. Qe8 {[%clk 0:00:12.8]} 69... Rc6 {[%clk 0:00:54.7]} 70. Qa8+
{[%clk 0:00:13.7]} 70... Kb6 {[%clk 0:00:56.1]} 71. Qb8+ {[%clk 0:00:15.2]}
71... Kc5 {[%clk 0:00:57.3]} 72. Qe5+ {[%clk 0:00:16.4]} 72... Kb6 {[%clk
0:00:55.8]} 73. Qb8+ {[%clk 0:00:17.5]} 1/2-1/2

[Event "*** Titled Tuesday Blitz"]
[Site "Chess.com"]
[Date "2019.09.03"]
[Round "1"]
[White "guillembaches"]
[Black "Joshukid"]
[Result "1/2-1/2"]
[WhiteElo "2306"]
[BlackElo "2634"]
[TimeControl "180+2"]
[EndTime "15:10:29 PDT"]
[Termination "Game drawn by agreement"]

1. e4 {[%clk 0:03:01.5]} 1... c6 {[%clk 0:02:57.7]} 2. Nc3 {[%clk 0:03:00.9]}
2... d5 {[%clk 0:02:54.3]} 3. Nf3 {[%clk 0:03:01.9]} 3... dxe4 {[%clk 0:02:54]}
4. Nxe4 {[%clk 0:03:03]} 4... Nf6 {[%clk 0:02:54.6]} 5. Nxf6+ {[%clk 0:03:03.7]}
5... exf6 {[%clk 0:02:52.3]} 6. Bc4 {[%clk 0:03:04.4]} 6... Bd6 {[%clk
0:02:49.9]} 7. Qe2+ {[%clk 0:03:05.2]} 7... Qe7 {[%clk 0:02:49.7]} 8. Qxe7+
{[%clk 0:03:06]} 8... Kxe7 {[%clk 0:02:51.6]} 9. O-O {[%clk 0:03:06.9]} 9... Be6
{[%clk 0:02:52.8]} 10. Re1 {[%clk 0:03:05.8]} 10... Re8 {[%clk 0:02:47.4]} 11.
d4 {[%clk 0:02:50.6]} 11... Kf8 {[%clk 0:02:41.2]} 12. Bd3 {[%clk 0:02:45.8]}
12... Na6 {[%clk 0:02:36.1]} 13. c3 {[%clk 0:02:40.3]} 13... Nc7 {[%clk
0:02:32.9]} 14. Bd2 {[%clk 0:02:32.1]} 14... b5 {[%clk 0:02:31.2]} 15. a4 {[%clk
0:02:09.5]} 15... a6 {[%clk 0:02:30.6]} 16. axb5 {[%clk 0:02:10.1]} 16... axb5
{[%clk 0:02:26.2]} 17. Rxa8 {[%clk 0:01:58.7]} 17... Rxa8 {[%clk 0:02:24]} 18.
Bxh7 {[%clk 0:01:59.2]} 18... g6 {[%clk 0:02:21.1]} 19. Bh6+ {[%clk 0:01:59.1]}
19... Ke7 {[%clk 0:02:22.6]} 20. Bg7 {[%clk 0:02:00.2]} 20... Ne8 {[%clk
0:02:16.1]} 21. Bh8 {[%clk 0:01:57.4]} 21... Nc7 {[%clk 0:01:29.1]} 22. Bg7
{[%clk 0:01:57.3]} 22... b4 {[%clk 0:01:25.1]} 23. c4 {[%clk 0:01:54.2]} 23...
Ne8 {[%clk 0:01:21.2]} 24. Bh6 {[%clk 0:01:47.1]} 24... Kd7 {[%clk 0:01:18.8]}
25. Nd2 {[%clk 0:01:14]} 25... f5 {[%clk 0:01:04.2]} 26. Bg5 {[%clk 0:01:02.1]}
26... b3 {[%clk 0:00:55.4]} 27. Nxb3 {[%clk 0:00:53.4]} 27... Bxc4 {[%clk
0:00:55.9]} 28. Nc5+ {[%clk 0:00:51.7]} 28... Bxc5 {[%clk 0:00:41]} 29. dxc5
{[%clk 0:00:53.6]} 29... Be6 {[%clk 0:00:42.1]} 30. h4 {[%clk 0:00:40.1]} 30...
Nc7 {[%clk 0:00:40.6]} 31. Bf4 {[%clk 0:00:24.6]} 31... Rh8 {[%clk 0:00:30.8]}
32. Bxc7 {[%clk 0:00:22.5]} 32... Rxh7 {[%clk 0:00:19.5]} 33. Bg3 {[%clk
0:00:20.2]} 33... f4 {[%clk 0:00:17.1]} 34. Bxf4 {[%clk 0:00:20.6]} 34... Rxh4
{[%clk 0:00:18.3]} 35. g3 {[%clk 0:00:20.8]} 35... Rh5 {[%clk 0:00:19]} 36. f3
{[%clk 0:00:20.9]} 36... Bd5 {[%clk 0:00:19.3]} 37. Re3 {[%clk 0:00:21.1]} 37...
Be6 {[%clk 0:00:20.3]} 38. Kg2 {[%clk 0:00:19.9]} 38... Rxc5 {[%clk 0:00:21.2]}
39. Rc3 {[%clk 0:00:19.7]} 39... Rb5 {[%clk 0:00:21.5]} 40. Rd3+ {[%clk
0:00:19.1]} 40... Bd5 {[%clk 0:00:22.1]} 41. Be5 {[%clk 0:00:17.5]} 41... Ke6
{[%clk 0:00:20.4]} 42. Bc3 {[%clk 0:00:18.3]} 42... f5 {[%clk 0:00:20.2]} 43.
Re3+ {[%clk 0:00:19.2]} 43... Kd7 {[%clk 0:00:19.8]} 44. Kf2 {[%clk 0:00:20.2]}
44... Rb8 {[%clk 0:00:17.1]} 45. Re1 {[%clk 0:00:19.1]} 45... Ra8 {[%clk
0:00:18.4]} 46. Rh1 {[%clk 0:00:18.6]} 46... Re8 {[%clk 0:00:18.8]} 47. Rh7+
{[%clk 0:00:18.9]} 47... Kd6 {[%clk 0:00:19.9]} 48. Rg7 {[%clk 0:00:18.6]} 48...
Re6 {[%clk 0:00:21]} 49. f4 {[%clk 0:00:17.3]} 49... Kc5 {[%clk 0:00:22.2]} 50.
Be5 {[%clk 0:00:18]} 50... Kc4 {[%clk 0:00:21.6]} 51. Ke3 {[%clk 0:00:18.9]}
51... Be4 {[%clk 0:00:22.9]} 52. Rd7 {[%clk 0:00:18.9]} 52... c5 {[%clk
0:00:21]} 53. Rd6 {[%clk 0:00:19.9]} 53... Rxd6 {[%clk 0:00:18.3]} 54. Bxd6
{[%clk 0:00:21.8]} 54... Kd5 {[%clk 0:00:18.8]} 55. Be5 {[%clk 0:00:22.3]} 55...
Kc4 {[%clk 0:00:20.7]} 56. Bc3 {[%clk 0:00:23.2]} 56... Kb3 {[%clk 0:00:22]} 57.
Kf2 {[%clk 0:00:24.2]} 57... Kc2 {[%clk 0:00:23.4]} 58. Be5 {[%clk 0:00:25.2]}
58... Kd3 {[%clk 0:00:24.5]} 59. Bf6 {[%clk 0:00:26.3]} 59... c4 {[%clk
0:00:26.1]} 60. Bc3 {[%clk 0:00:27.1]} 60... Bb7 {[%clk 0:00:27.4]} 61. Bf6
{[%clk 0:00:28.2]} 61... Ke4 {[%clk 0:00:28.9]} 62. Bc3 {[%clk 0:00:29.2]} 62...
Kd5 {[%clk 0:00:30.2]} 63. Bf6 {[%clk 0:00:30.2]} 63... Ke6 {[%clk 0:00:31.9]}
64. Bc3 {[%clk 0:00:31.3]} 64... Kf7 {[%clk 0:00:33.8]} 65. Bd2 {[%clk
0:00:32.2]} 65... Kg7 {[%clk 0:00:35]} 66. Bc3+ {[%clk 0:00:33.3]} 66... Kh6
{[%clk 0:00:36.6]} 67. Bd2 {[%clk 0:00:34.3]} 67... Kh5 {[%clk 0:00:37.8]} 68.
Bc3 {[%clk 0:00:35.3]} 68... g5 {[%clk 0:00:39.5]} 69. fxg5 {[%clk 0:00:35.7]}
69... Kxg5 {[%clk 0:00:41.4]} 70. Bd2+ {[%clk 0:00:36.7]} 70... Kg4 {[%clk
0:00:42.1]} 71. Bc3 {[%clk 0:00:37.6]} 71... f4 {[%clk 0:00:43]} 72. gxf4 {[%clk
0:00:38.4]} 72... Kxf4 {[%clk 0:00:44.9]} 73. Ke1 {[%clk 0:00:39.6]} 73... Ke4
{[%clk 0:00:46.8]} 74. Kd2 {[%clk 0:00:40.7]} 74... Kd5 {[%clk 0:00:48.2]} 75.
Bg7 {[%clk 0:00:40.9]} 75... Kc5 {[%clk 0:00:50.1]} 76. Kc3 {[%clk 0:00:41.9]}
76... Kb5 {[%clk 0:00:51.8]} 77. Bd4 {[%clk 0:00:41.9]} 77... Bd5 {[%clk
0:00:51.8]} 78. Be3 {[%clk 0:00:43]} 78... Bf7 {[%clk 0:00:53.3]} 79. Bd2 {[%clk
0:00:44.1]} 79... Kc6 {[%clk 0:00:55.1]} 80. Kd4 {[%clk 0:00:45.2]} 80... Kb5
{[%clk 0:00:56.2]} 81. Bc3 {[%clk 0:00:46.4]} 81... Ka4 {[%clk 0:00:57.3]} 82.
Ke5 {[%clk 0:00:47.5]} 82... Kb3 {[%clk 0:00:58.9]} 83. Kd4 {[%clk 0:00:48.6]}
83... Bg8 {[%clk 0:01:00.2]} 84. Ke5 {[%clk 0:00:49.8]} 1/2-1/2

[Event "*** Titled Tuesday Blitz"]
[Site "Chess.com"]
[Date "2019.09.03"]
[Round "1"]
[White "r31415"]
[Black "Arystanner"]
[Result "1-0"]
[WhiteElo "2362"]
[BlackElo "2687"]
[TimeControl "180+2"]
[EndTime "15:10:36 PDT"]
[Termination "r31415 won by checkmate"]

1. e4 {[%clk 0:02:58.7]} 1... e6 {[%clk 0:03:00.7]} 2. d4 {[%clk 0:02:59.5]}
2... d5 {[%clk 0:03:01.8]} 3. Nc3 {[%clk 0:03:01.1]} 3... Nf6 {[%clk 0:03:02.6]}
4. e5 {[%clk 0:03:02.4]} 4... Nfd7 {[%clk 0:03:03.9]} 5. f4 {[%clk 0:03:04]}
5... c5 {[%clk 0:03:05.2]} 6. Nf3 {[%clk 0:03:05.4]} 6... Nc6 {[%clk 0:03:05.5]}
7. Be3 {[%clk 0:03:07]} 7... Be7 {[%clk 0:03:06.4]} 8. dxc5 {[%clk 0:03:07.6]}
8... Bxc5 {[%clk 0:03:07]} 9. Bxc5 {[%clk 0:02:44.8]} 9... Nxc5 {[%clk
0:03:06.9]} 10. Qd2 {[%clk 0:02:45.6]} 10... a6 {[%clk 0:02:56]} 11. O-O-O
{[%clk 0:02:41.9]} 11... b5 {[%clk 0:02:54.1]} 12. Kb1 {[%clk 0:02:29.4]} 12...
b4 {[%clk 0:02:53.4]} 13. Ne2 {[%clk 0:02:26.9]} 13... Qb6 {[%clk 0:02:50.8]}
14. Ned4 {[%clk 0:02:12.2]} 14... Ne4 {[%clk 0:02:50.3]} 15. Qe1 {[%clk
0:02:11.3]} 15... Nxd4 {[%clk 0:02:40.8]} 16. Rxd4 {[%clk 0:01:55.1]} 16... a5
{[%clk 0:02:39.6]} 17. Bd3 {[%clk 0:01:45.6]} 17... Bb7 {[%clk 0:02:40.9]} 18.
Qe3 {[%clk 0:01:38.8]} 18... O-O {[%clk 0:02:23.9]} 19. Rxe4 {[%clk 0:01:31.6]}
19... Qc7 {[%clk 0:01:43.1]} 20. Rd4 {[%clk 0:01:30.4]} 20... h6 {[%clk
0:01:44.4]} 21. g4 {[%clk 0:01:26.7]} 21... Rfc8 {[%clk 0:01:45.1]} 22. g5
{[%clk 0:01:25.3]} 22... h5 {[%clk 0:01:45.7]} 23. g6 {[%clk 0:01:26.2]} 23...
fxg6 {[%clk 0:01:36.6]} 24. Bxg6 {[%clk 0:01:22.2]} 24... a4 {[%clk 0:01:37.2]}
25. Ng5 {[%clk 0:01:14.8]} 25... b3 {[%clk 0:01:34.4]} 26. a3 {[%clk 0:01:07.5]}
26... bxc2+ {[%clk 0:01:31.7]} 27. Kc1 {[%clk 0:01:08.5]} 27... Qb6 {[%clk
0:01:26.5]} 28. Qh3 {[%clk 0:00:58.8]} 28... Ra6 {[%clk 0:00:41.8]} 29. Rb4
{[%clk 0:00:57]} 29... Qf2 {[%clk 0:00:38.3]} 30. Qf3 {[%clk 0:00:27.8]} 30...
Qxf3 {[%clk 0:00:17.9]} 31. Nxf3 {[%clk 0:00:27]} 31... Ba8 {[%clk 0:00:19.8]}
32. Rd4 {[%clk 0:00:09.3]} 32... Kf8 {[%clk 0:00:18.9]} 33. Re1 {[%clk
0:00:07.9]} 33... Ke7 {[%clk 0:00:20]} 34. Re3 {[%clk 0:00:07.5]} 34... Rb6
{[%clk 0:00:17.5]} 35. Rc3 {[%clk 0:00:06.2]} 35... Rxc3 {[%clk 0:00:18.4]} 36.
bxc3 {[%clk 0:00:07.5]} 36... Rb3 {[%clk 0:00:20.1]} 37. Rxa4 {[%clk 0:00:06.1]}
37... Rxc3 {[%clk 0:00:19.2]} 38. Ra7+ {[%clk 0:00:06.7]} 38... Kd8 {[%clk
0:00:17.9]} 39. Rxa8+ {[%clk 0:00:07.9]} 39... Kd7 {[%clk 0:00:18.4]} 40. Nd4
{[%clk 0:00:09]} 40... Rc4 {[%clk 0:00:18.8]} 41. Ra7+ {[%clk 0:00:10.3]} 41...
Kc8 {[%clk 0:00:19.9]} 42. Nxe6 {[%clk 0:00:08.9]} 42... d4 {[%clk 0:00:21.3]}
43. Bf5 {[%clk 0:00:07]} 43... Kb8 {[%clk 0:00:22.1]} 44. Rd7 {[%clk 0:00:06.3]}
44... d3 {[%clk 0:00:22.8]} 45. Bxd3 {[%clk 0:00:05.7]} 45... Rc3 {[%clk
0:00:24.3]} 46. Bxc2 {[%clk 0:00:06.5]} 46... Rxa3 {[%clk 0:00:25.7]} 47. Rxg7
{[%clk 0:00:07.3]} 47... h4 {[%clk 0:00:27.2]} 48. Nc5 {[%clk 0:00:06.9]} 48...
h3 {[%clk 0:00:28.6]} 49. Rg3 {[%clk 0:00:05.7]} 49... Ra5 {[%clk 0:00:26]} 50.
Nb3 {[%clk 0:00:04.8]} 50... Ra4 {[%clk 0:00:26.2]} 51. Rxh3 {[%clk 0:00:05]}
51... Rxf4 {[%clk 0:00:27.8]} 52. Re3 {[%clk 0:00:06.5]} 52... Kc7 {[%clk
0:00:28.2]} 53. e6 {[%clk 0:00:07.4]} 53... Rf1+ {[%clk 0:00:24.1]} 54. Kb2
{[%clk 0:00:08.2]} 54... Rf8 {[%clk 0:00:25.3]} 55. Nd4 {[%clk 0:00:06.7]} 55...
Kd6 {[%clk 0:00:24.7]} 56. Ba4 {[%clk 0:00:05.7]} 56... Rb8+ {[%clk 0:00:24.5]}
57. Kc3 {[%clk 0:00:06.3]} 57... Rb7 {[%clk 0:00:23.8]} 58. e7 {[%clk
0:00:06.6]} 58... Rc7+ {[%clk 0:00:20.6]} 59. Kd3 {[%clk 0:00:06.4]} 59... Kd5
{[%clk 0:00:14.1]} 60. Bb3+ {[%clk 0:00:05.8]} 60... Kd6 {[%clk 0:00:14.1]} 61.
e8=Q {[%clk 0:00:05.4]} 61... Rc3+ {[%clk 0:00:15.3]} 62. Kxc3 {[%clk
0:00:06.2]} 62... Kc5 {[%clk 0:00:15.1]} 63. Qc6# {[%clk 0:00:06.6]} 1-0